bitfinex/quotes_SOLUSD_20251002
["timestamp","ask_amount","ask_price","bid_price","bid_amount"]
[1759436084225,0.2,232.62,232.61,51.04]
[1759436087256,0.2,232.62,232.49,4.60781504]
[1759436087257,16.06533171,232.62,232.49,4.60781504]
[1759436087466,10.87647521,232.6,232.4,15.06024095]
[1759436087626,10.87647521,232.58,232.49,1.72202251]
[1759436087825,10.87647521,232.58,232.49,29.26]
[1759436087826,0.69,232.57,232.49,29.26]
[1759436088043,10.87647521,232.55,232.49,29.26]
[1759436088241,0.69,232.54,232.49,29.26]
[1759436088447,0.69,232.53,232.52,20.8]
[1759436088828,0.69,232.53,232.49,29.26]
[1759436089028,0.69,232.52,232.51,20.8]
[1759436090356,11.56647521,232.52,232.46,12.91]
[1759436090560,12.91,232.59,232.34,2.44400435]
[1759436090561,4.99106259,232.51,232.47,30.24]
[1759436090728,15.17712141,232.53,232.5,20.8]
[1759436091434,0.69,232.52,232.5,20.8]
[1759436091836,0.69,232.51,232.5,20.8]
[1759436092442,0.69,232.53,232.5,20.8]
[1759436092645,0.69,232.52,232.5,20.8]
[1759436093151,0.69,232.51,232.5,20.8]
[1759436093848,11.56647521,232.51,232.5,20.8]
[1759436094231,11.56647521,232.51,232.44,4.30215057]
[1759436094536,4.30126026,232.49,232.45,30.24]
[1759436094736,0.69,232.48,232.42,10.87647521]
[1759436094951,0.69,232.47,232.42,10.87647521]
[1759436095133,0.69,232.46,232.41,20.8]
[1759436095335,0.69,232.46,232.42,51.04]
[1759436095646,0.69,232.48,232.45,20.8]
[1759436095853,4.30126026,232.49,232.45,20.8]
[1759436096055,0.69,232.47,232.45,20.8]
[1759436096657,0.69,232.46,232.45,20.8]
[1759436097234,4.30157015,232.48,232.46,20.8]
[1759436097235,4.99157015,232.48,232.46,20.8]
[1759436097435,0.69,232.47,232.46,20.8]
[1759436097660,4.99168206,232.47,232.43,30.24]
[1759436097865,0.69,232.46,232.43,30.24]
[1759436098060,0.69,232.45,232.42,20.8]
[1759436098269,0.69,232.44,232.42,51.04]
[1759436098477,0.69,232.43,232.42,51.04]
[1759436098851,0.69,232.46,232.42,51.04]
[1759436099051,0.69,232.45,232.42,51.04]
[1759436100171,0.69,232.45,232.41,20.8]
[1759436100370,0.69,232.45,232.41,51.04]
[1759436100954,0.69,232.45,232.42,20.8]
[1759436101255,0.69,232.44,232.43,20.8]
[1759436102269,0.65,232.47,232.43,20.8]
[1759436102448,0.65,232.46,232.43,20.8]
[1759436102764,15.82792929,232.48,232.43,20.8]
[1759436103156,0.65,232.47,232.43,20.8]
[1759436103567,0.65,232.46,232.43,20.8]
[1759436104062,10.87647521,232.48,232.43,34.54234834]
[1759436104447,0.65,232.49,232.43,34.54234834]
[1759436104655,4.30126898,232.49,232.43,30.24]
[1759436104858,0.65,232.48,232.43,30.24]
[1759436105054,10.87647521,232.46,232.36,4.30366672]
[1759436105264,0.65,232.45,232.4,20.8]
[1759436105463,0.65,232.44,232.4,51.06]
[1759436105881,0.65,232.43,232.4,51.06]
[1759436108665,11.52647521,232.42,232.37,10.87647521]
[1759436108865,10.87647521,232.4,232.37,10.87647521]
[1759436109193,4.37095399,232.44,232.34,0.2]
[1759436109194,10.87647521,232.38,232.34,0.2]
[1759436109358,0.65,232.37,232.36,20.8]
[1759436110290,4.30366672,232.36,232.34,0.2]
[1759436110586,11.52647521,232.35,232.34,0.2]
[1759436111961,15.83032715,232.35,232.34,0.2]
[1759436115480,11.52647521,232.35,232.34,0.2]
[1759436116370,15.83032715,232.35,232.34,0.2]
[1759436118187,11.52647521,232.35,232.34,0.2]
[1759436118367,15.83032715,232.35,232.34,0.2]
[1759436120981,10.87647521,232.35,232.34,0.2]
[1759436121486,11.52647521,232.35,232.34,0.2]
[1759436121786,15.83032715,232.35,232.34,0.2]
[1759436122491,15.89901942,232.35,232.34,0.2]
[1759436122673,11.59516748,232.35,232.34,0.2]
[1759436122868,0.06869227,232.35,232.34,0.2]
[1759436123268,0.06869227,232.35,232.34,21.0]
[1759436124273,0.06869227,232.35,232.34,0.2]
[1759436125194,0.06869227,232.35,232.34,21.0]
[1759436127995,0.68,232.39,232.34,25.30403718]
[1759436129410,0.68,232.38,232.34,21.0]
[1759436129572,0.68,232.37,232.34,21.0]
[1759436131578,0.67,232.36,232.34,21.0]
[1759436132184,11.54647521,232.35,232.34,0.2]
[1759436132498,10.87647521,232.34,232.31,4.31]
[1759436132796,15.18088292,232.32,232.31,4.31]
[1759436133000,15.85088292,232.32,232.31,4.31]
[1759436136814,69.7819022,232.32,232.28,0.1]
[1759436137119,10.87647521,232.3,232.28,0.1]
[1759436137312,41.13647521,232.29,232.28,0.1]
[1759436137488,41.80647521,232.29,232.28,0.1]
[1759436138184,46.11143883,232.29,232.28,0.1]
[1759436139580,15.85143883,232.29,232.28,0.1]
[1759436139993,10.87647521,232.28,232.19,20.8]
[1759436140200,11.54647521,232.28,232.18,20.80000001]
[1759436140392,0.67,232.27,232.18,20.80000001]
[1759436140584,10.87647521,232.25,232.18,20.80000001]
[1759436140784,0.67,232.24,232.18,20.80000001]
[1759436141989,4.97598863,232.24,232.18,20.80000001]
[1759436142193,4.30598863,232.24,232.18,25.10697572]
[1759436142418,4.9753343,232.27,232.19,0.32]
[1759436143101,10.87647521,232.26,232.2,20.8]
[1759436143415,10.87647521,232.26,232.2,21.12]
[1759436144914,15.18199968,232.26,232.2,25.42650773]
[1759436146212,15.18199968,232.26,232.2,21.12]
[1759436146396,15.18199968,232.26,232.2,0.32]
[1759436147517,15.85199968,232.26,232.19,4.30681343]
[1759436147895,15.85199968,232.26,232.19,4.62681343]
[1759436148097,15.85199968,232.26,232.19,0.32]
[1759436148612,15.85199968,232.26,232.18,25.42698791]
[1759436148808,15.18199968,232.26,232.18,25.42698791]
[1759436149010,0.67,232.25,232.18,1e-08]
[1759436149210,0.67,232.25,232.18,20.80000001]
[1759436149393,10.87647521,232.23,232.18,1e-08]
[1759436149815,0.67,232.24,232.18,1e-08]
[1759436149816,10.87647521,232.21,232.18,1e-08]
[1759436150195,10.87647521,232.19,232.18,1e-08]
[1759436150622,11.54647521,232.19,232.18,1e-08]
[1759436151408,15.8532929,232.19,232.18,1e-08]
[1759436151926,46.1132929,232.19,232.18,1e-08]
[1759436152110,59.0232929,232.19,232.18,1e-08]
[1759436152425,61.77869113,232.19,232.18,1e-08]
[1759436152938,59.0232929,232.19,232.18,1e-08]
[1759436158725,46.1332929,232.19,232.18,1e-08]
[1759436159403,15.8532929,232.19,232.18,1e-08]
[1759436159610,46.1332929,232.19,232.18,1e-08]
[1759436159809,15.1832929,232.19,232.18,1e-08]
[1759436160115,45.4632929,232.19,232.18,1e-08]
[1759436160319,15.1832929,232.19,232.18,1e-08]
[1759436161137,10.87647521,232.19,232.18,1e-08]
[1759436161428,15.1832929,232.19,232.18,1e-08]
[1759436163342,15.8332929,232.19,232.18,1e-08]
[1759436163518,15.1832929,232.19,232.18,1e-08]
[1759436163703,45.4632929,232.19,232.18,1e-08]
[1759436164031,0.65,232.24,232.18,1e-08]
[1759436164204,10.87647521,232.19,232.18,1e-08]
[1759436164924,0.65,232.24,232.18,0.32000001]
[1759436165106,4.30607587,232.23,232.18,0.32000001]
[1759436165521,10.87647521,232.24,232.18,1e-08]
[1759436165833,10.87647521,232.25,232.19,0.32]
[1759436166131,10.87647521,232.28,232.19,0.32]
[1759436166307,4.30490604,232.3,232.19,21.12]
[1759436166501,4.30490604,232.3,232.2,0.32]
[1759436166703,35.21456059,232.32,232.21,20.8]
[1759436166927,35.21456059,232.32,232.22,0.32]
[1759436167122,10.87647521,232.31,232.22,0.32]
[1759436167323,4.3047783,232.3,232.22,0.32]
[1759436167723,4.3047783,232.3,232.22,4.62624705]
[1759436168233,4.3047783,232.3,232.22,0.32]
[1759436168535,4.3047783,232.3,232.22,4.62613795]
[1759436168748,4.3047783,232.3,232.22,0.32]
[1759436168941,11.52647521,232.29,232.18,0.32000001]
[1759436169124,10.87647521,232.27,232.18,0.32000001]
[1759436169317,10.87647521,232.25,232.18,0.32000001]
[1759436169850,11.52647521,232.25,232.18,1e-08]
[1759436170217,10.87647521,232.23,232.18,1e-08]
[1759436170636,10.87647521,232.21,232.18,1e-08]
[1759436171017,0.65,232.2,232.18,1e-08]
[1759436171450,4.30681769,232.19,232.18,1e-08]
[1759436171751,4.95681769,232.19,232.18,1e-08]
[1759436172126,15.8332929,232.19,232.18,1e-08]
[1759436173064,0.65,232.19,232.18,1e-08]
[1759436173339,4.30644675,232.21,232.18,1e-08]
[1759436173661,10.87647521,232.25,232.18,0.32000001]
[1759436173816,10.87647521,232.25,232.19,0.32]
[1759436174017,4.30570736,232.25,232.19,0.32]
[1759436174236,4.30570736,232.25,232.18,1e-08]
[1759436174423,4.30570736,232.25,232.18,0.32000001]
[1759436174744,4.30570736,232.25,232.18,1e-08]
[1759436174745,11.52647521,232.24,232.18,1e-08]
[1759436174918,41.78647521,232.24,232.18,1e-08]
[1759436175323,10.87647521,232.22,232.18,1e-08]
[1759436175734,11.52647521,232.22,232.18,1e-08]
[1759436176140,4.30597012,232.24,232.18,1e-08]
[1759436176348,15.18244533,232.24,232.18,1e-08]
[1759436176729,0.65,232.25,232.18,0.32000001]
[1759436177048,10.87647521,232.27,232.18,0.32000001]
[1759436177342,15.18130146,232.3,232.22,20.8]
[1759436177549,15.18130146,232.3,232.23,0.32]
[1759436178128,0.65,232.31,232.23,0.32]
[1759436178742,0.65,232.3,232.22,20.8]
[1759436179536,4.30496362,232.29,232.23,4.30607587]
[1759436180633,4.30496362,232.29,232.22,20.8]
[1759436180851,4.30496362,232.29,232.22,25.10615079]
[1759436181564,0.65,232.3,232.22,25.10615079]
[1759436181743,11.52647521,232.33,232.23,0.32]
[1759436182652,4.30445466,232.32,232.23,4.62606579]
[1759436183021,0.65,232.31,232.23,4.62606579]
[1759436183247,0.65,232.3,232.23,4.23719477]
[1759436184056,21.63673932,232.34,232.18,1e-08]
[1759436184057,10.87647521,232.28,232.18,1e-08]
[1759436184240,41.13647521,232.28,232.18,1e-08]
[1759436184464,10.87647521,232.26,232.18,1e-08]
[1759436184834,10.87647521,232.24,232.18,1e-08]
[1759436185273,0.66,232.23,232.18,1e-08]
[1759436185767,10.87647521,232.27,232.18,1e-08]
[1759436185924,0.66,232.22,232.18,1e-08]
[1759436186434,0.66,232.21,232.18,1e-08]
[1759436187749,0.66,232.23,232.18,1e-08]
[1759436188052,4.96607743,232.23,232.18,1e-08]
[1759436188361,0.66,232.22,232.18,1e-08]
[1759436188955,0.66,232.25,232.18,1e-08]
[1759436189158,0.66,232.28,232.19,0.32]
[1759436189353,0.66,232.27,232.19,0.32]
[1759436189736,0.66,232.27,232.18,1e-08]
[1759436190138,4.96539492,232.27,232.2,25.10653679]
[1759436190333,4.96539492,232.27,232.2,20.8]
[1759436190334,0.66,232.26,232.2,20.8]
[1759436190540,0.66,232.26,232.18,25.10687268]
[1759436190740,0.66,232.25,232.18,25.10687268]
[1759436191142,0.66,232.24,232.18,4.30687268]
[1759436191739,0.72,232.26,232.19,20.8]
[1759436192155,0.72,232.26,232.2,4.30663221]
[1759436194041,0.72,232.26,232.21,20.8]
[1759436194239,0.72,232.25,232.21,20.8]
[1759436194664,0.72,232.25,232.21,25.10639502]
[1759436197352,0.72,232.29,232.23,20.8]
[1759436197762,0.72,232.28,232.23,20.8]
[1759436198060,0.72,232.27,232.23,20.8]
[1759436198258,0.72,232.26,232.23,20.8]
[1759436198572,0.72,232.26,232.23,25.10596078]
[1759436199499,0.72,232.3,232.25,20.8]
[1759436199850,4.30422244,232.33,232.25,20.8]
[1759436200056,0.72,232.29,232.25,20.8]
[1759436200263,0.72,232.28,232.25,20.8]
[1759436200654,0.72,232.27,232.25,20.8]
[1759436202781,0.72,232.26,232.23,20.8]
[1759436202953,0.72,232.28,232.23,20.8]
[1759436203278,0.72,232.27,232.23,20.8]
[1759436203662,0.72,232.27,232.23,25.10606476]
[1759436205271,0.72,232.27,232.23,20.8]
[1759436205670,0.72,232.27,232.23,25.1060511]
[1759436207458,0.72,232.27,232.23,20.8]
[1759436208065,10.87647521,232.35,232.2,0.32]
[1759436208066,0.72,232.26,232.2,0.32]
[1759436208269,0.72,232.26,232.18,1e-08]
[1759436208462,0.72,232.26,232.19,20.8]
[1759436208763,10.87647521,232.31,232.19,20.8]
[1759436208764,4.30589045,232.24,232.19,20.8]
[1759436208971,0.72,232.23,232.19,20.8]
[1759436209484,0.72,232.23,232.18,4.30699184]
[1759436209881,5.02610577,232.23,232.19,20.8]
[1759436210485,0.72,232.23,232.19,20.8]
[1759436217488,0.72,232.23,232.2,20.8]
[1759436217687,0.72,232.22,232.18,1e-08]
[1759436219887,4.30644675,232.21,232.18,1e-08]
[1759436220397,0.72,232.2,232.18,1e-08]
[1759436220779,0.72,232.19,232.18,1e-08]
[1759436221289,11.59647521,232.19,232.18,1e-08]
[1759436221877,33.15299219,232.25,232.18,1e-08]
[1759436222082,0.66,232.19,232.18,1e-08]
[1759436223204,0.66,232.21,232.18,1e-08]
[1759436223404,15.73061659,232.24,232.18,1e-08]
[1759436223576,0.66,232.23,232.18,1e-08]
[1759436223777,0.66,232.25,232.18,4.30700319]
[1759436224387,10.87647521,232.3,232.19,20.8]
[1759436224584,0.66,232.27,232.19,21.12]
[1759436224789,0.66,232.26,232.19,20.8]
[1759436224989,0.66,232.25,232.19,20.8]
[1759436225191,0.66,232.24,232.19,20.8]
[1759436225394,0.66,232.24,232.19,25.10676165]
[1759436226387,4.96590274,232.24,232.19,20.8]
[1759436226701,4.30590274,232.24,232.19,20.8]
[1759436227007,0.66,232.23,232.19,20.8]
[1759436228406,4.96608041,232.23,232.18,1e-08]
[1759436228903,4.30496362,232.29,232.18,4.62691573]
[1759436229207,0.66,232.24,232.18,4.62691573]
[1759436229590,0.66,232.24,232.18,4.30691573]
[1759436229990,4.96596488,232.24,232.18,1e-08]
[1759436230209,0.66,232.24,232.18,1e-08]
[1759436230389,0.66,232.26,232.18,0.32000001]
[1759436231912,0.66,232.26,232.18,1e-08]
[1759436232115,4.30570505,232.25,232.18,1e-08]
[1759436232612,0.66,232.24,232.18,1e-08]
[1759436233896,4.9659124,232.24,232.18,1e-08]
[1759436234093,0.66,232.24,232.18,1e-08]
[1759436234295,4.96596215,232.24,232.18,1e-08]
[1759436238737,15.73068829,232.24,232.18,1e-08]
[1759436238932,10.87647521,232.23,232.18,1e-08]
[1759436239131,41.13647521,232.23,232.18,1e-08]
[1759436239294,0.66,232.22,232.18,1e-08]
[1759436239895,10.87647521,232.2,232.18,1e-08]
[1759436240400,11.53647521,232.19,232.18,1e-08]
[1759436241014,15.8432929,232.19,232.18,1e-08]
[1759436244920,4.96681769,232.19,232.18,1e-08]
[1759436254808,15.8432929,232.19,232.18,1e-08]
[1759436267828,46.1032929,232.19,232.18,1e-08]
[1759436268431,15.1832929,232.19,232.18,1e-08]
[1759436268634,45.4432929,232.19,232.18,1e-08]
[1759436269143,46.1132929,232.19,232.18,1e-08]
[1759436274838,10.87647521,232.18,232.12,0.2]
[1759436275035,13.63622523,232.16,232.12,1e-08]
[1759436275251,10.87647521,232.13,232.12,1e-08]
[1759436275425,41.13647521,232.13,232.12,1e-08]
[1759436275748,41.80647521,232.13,232.12,1e-08]
[1759436276525,11.54647521,232.13,232.12,1e-08]
[1759436276730,46.11440611,232.13,232.12,1e-08]
[1759436278536,15.85440611,232.13,232.12,1e-08]
[1759436278752,46.11440611,232.13,232.12,1e-08]
[1759436279552,45.44440611,232.13,232.12,1e-08]
[1759436279956,46.11440611,232.13,232.12,1e-08]
[1759436280538,45.44440611,232.13,232.12,1e-08]
[1759436281548,46.12440611,232.13,232.12,1e-08]
[1759436282359,45.44440611,232.13,232.12,1e-08]
[1759436282846,45.46440611,232.13,232.12,1e-08]
[1759436285448,34.5879309,232.13,232.12,1e-08]
[1759436285958,10.87647521,232.18,232.12,0.32000001]
[1759436286163,10.87647521,232.19,232.12,0.32000001]
[1759436286334,30.28,232.2,232.12,0.32000001]
[1759436287042,4.30681769,232.19,232.12,0.32000001]
[1759436287559,15.07386192,232.19,232.12,0.32000001]
[1759436287863,41.83647521,232.18,232.12,1e-08]
[1759436288156,10.87647521,232.16,232.12,1e-08]
[1759436288461,10.87647521,232.14,232.12,1e-08]
[1759436288756,41.17647521,232.13,232.12,1e-08]
[1759436288967,30.3,232.13,232.12,1e-08]
[1759436289337,34.6079309,232.13,232.12,1e-08]
[1759436290267,4.3079309,232.13,232.12,1e-08]
[1759436290562,41.85647521,232.13,232.12,1e-08]
[1759436292253,46.16440611,232.13,232.12,1e-08]
[1759436299957,10.87647521,232.12,232.1,1e-08]
[1759436300157,42.9248909,232.11,232.1,1e-08]
[1759436300359,46.4921938,232.11,232.1,1e-08]
[1759436300967,50.80049589,232.11,232.1,1e-08]
[1759436301757,49.0320802,232.11,232.1,1e-08]
[1759436303248,49.03072914,232.11,232.1,1e-08]
[1759436304252,46.1447773,232.11,232.1,1e-08]
[1759436304678,49.03163744,232.11,232.1,1e-08]
[1759436304971,46.1447773,232.11,232.1,1e-08]
[1759436305552,47.91319299,232.11,232.1,1e-08]
[1759436305874,50.80183932,232.11,232.1,1e-08]
[1759436306164,83.11410505,232.11,232.01,0.22000001]
[1759436306368,83.11410505,232.11,231.94,4.51145825]
[1759436306369,10.87647521,232.08,231.94,4.51145825]
[1759436306552,10.87647521,232.06,231.97,23.24526314]
[1759436306746,10.87647521,232.04,231.97,23.24526314]
[1759436306944,4.30997327,232.02,231.97,23.24526314]
[1759436307447,4.30997327,232.02,231.97,0.2]
[1759436308077,4.30997327,232.02,231.98,0.22]
[1759436308272,15.08490646,232.02,231.97,0.2]
[1759436308485,15.08490646,232.02,231.98,0.22]
[1759436308655,15.08490646,232.02,231.99,0.22]
[1759436310272,15.08490646,232.02,231.97,21.0]
[1759436310472,15.08490646,232.02,231.97,0.42]
[1759436310985,15.08490646,232.02,231.98,0.22]
[1759436311361,15.08490646,232.02,231.97,0.2]
[1759436311562,11.59647521,232.01,231.97,0.2]
[1759436311976,41.87647521,232.01,231.97,0.2]
[1759436312165,0.72,232.0,231.97,0.2]
[1759436312472,35.31053062,231.99,231.97,0.2]
[1759436312907,34.59053062,231.99,231.97,0.2]
[1759436313395,35.31053062,231.99,231.97,0.2]
[1759436314004,34.59053062,231.99,231.97,0.2]
[1759436314888,35.31053062,231.99,231.97,0.2]
[1759436315761,4.31053062,231.99,231.97,0.2]
[1759436315970,30.28,231.98,231.97,0.2]
[1759436316171,4.31053062,231.99,231.97,0.2]
[1759436316469,30.28,231.98,231.97,0.2]
[1759436316990,34.59071644,231.98,231.97,0.2]
[1759436319467,15.18679989,232.01,231.97,0.2]
[1759436319671,30.28,232.0,231.97,0.2]
[1759436320467,0.72,231.99,231.97,0.2]
[1759436320667,31.0,232.0,231.97,0.2]
[1759436320890,30.28,232.0,231.97,0.2]
[1759436321695,10.77434637,232.04,231.97,0.42]
[1759436321994,41.15647521,232.03,231.98,0.22]
[1759436322503,0.72,232.02,231.97,0.2]
[1759436322995,0.72,232.01,231.97,0.2]
[1759436323800,4.31034482,232.0,231.97,0.2]
[1759436324377,4.31034482,232.0,231.97,0.42]
[1759436324681,4.31034482,232.0,231.97,0.2]
[1759436325073,51.93094402,232.03,231.97,0.2]
[1759436325074,11.59647521,232.03,231.97,0.2]
[1759436325382,4.3097951,232.03,231.97,0.42]
[1759436325582,4.3097951,232.03,231.97,21.22]
[1759436326171,35.30957015,232.05,231.97,21.0]
[1759436326377,34.58957015,232.05,231.98,0.22]
[1759436326590,4.30957015,232.05,231.98,0.22]
[1759436327192,0.72,232.06,231.98,0.22]
[1759436327394,4.30904468,232.07,231.98,0.22]
[1759436327586,5.02904468,232.07,231.98,0.22]
[1759436327990,5.02904468,232.07,231.97,25.03088338]
[1759436329479,0.72,232.06,231.97,25.03083331]
[1759436329679,0.72,232.05,231.97,25.03083331]
[1759436330402,0.72,232.05,231.97,4.31083331]
[1759436330798,0.72,232.05,231.94,51.28]
[1759436330799,4.30960179,232.04,231.95,4.31127398]
[1759436332089,5.02941912,232.05,231.98,20.8]
[1759436332907,5.02941912,232.05,231.98,25.11067428]
[1759436335010,0.72,232.04,231.98,20.8]
[1759436335381,0.72,232.03,231.98,20.8]
[1759436335621,0.72,232.02,231.98,20.8]
[1759436336495,4.3097836,232.04,231.98,25.11070775]
[1759436336795,5.0297836,232.04,231.98,25.11070775]
[1759436339617,10.87647521,232.07,232.01,20.8]
[1759436340321,10.3097836,232.08,232.01,0.7]
[1759436340697,10.3097836,232.08,232.0,20.8]
[1759436340894,10.87647521,232.11,232.01,21.5]
[1759436340895,10.87647521,232.09,232.01,21.5]
[1759436341288,4.30883137,232.09,232.02,0.7]
[1759436341591,5.00848772,232.1,232.03,4.30978752]
[1759436342207,5.00848772,232.1,232.05,20.8]
[1759436342411,10.76997562,232.13,232.06,0.71]
[1759436342412,5.00793551,232.13,232.06,0.71]
[1759436343107,5.0077343,232.15,232.06,51.79]
[1759436343308,5.0077343,232.15,232.06,51.08]
[1759436343513,5.0077343,232.15,232.1,20.8]
[1759436344004,0.7,232.14,232.09,20.8]
[1759436344195,4.3077343,232.15,232.1,20.8]
[1759436344520,5.0077343,232.15,232.1,20.8]
[1759436344994,51.92385085,232.19,232.1,21.51]
[1759436344995,0.7,232.17,232.1,21.51]
[1759436345199,0.7,232.19,232.11,0.71]
[1759436345711,0.7,232.19,232.14,20.8]
[1759436346027,0.7,232.18,232.14,20.8]
[1759436346226,0.7,232.18,232.13,20.8]
[1759436346519,0.7,232.17,232.13,20.8]
[1759436346723,0.7,232.17,232.11,21.51]
[1759436347303,0.7,232.2,232.13,20.8]
[1759436347629,4.30681769,232.19,232.14,0.71]
[1759436347998,4.30681769,232.19,232.15,0.71]
[1759436348594,4.30681769,232.19,232.15,21.51]
[1759436348989,4.30644675,232.21,232.15,21.51]
[1759436349224,4.30644675,232.21,232.15,0.71]
[1759436349401,0.7,232.2,232.15,20.8]
[1759436349602,4.30681769,232.19,232.15,20.8]
[1759436349801,5.00681769,232.19,232.15,20.8]
[1759436351019,4.30681769,232.19,232.15,21.51]
[1759436352020,4.30663221,232.2,232.15,21.51]
[1759436352422,4.30663221,232.2,232.15,20.8]
[1759436352614,4.30663221,232.2,232.15,21.51]
[1759436352615,5.00663221,232.2,232.15,21.51]
[1759436354405,4.30663221,232.2,232.17,20.8]
[1759436355915,5.00643644,232.22,232.16,0.71]
[1759436356218,4.30621105,232.23,232.16,5.01722485]
[1759436356407,4.30621105,232.23,232.17,0.71]
[1759436357228,5.00621105,232.23,232.17,0.71]
[1759436359116,0.7,232.23,232.17,5.01713716]
[1759436359314,0.7,232.25,232.21,20.8]
[1759436360829,0.7,232.25,232.19,0.71]
[1759436360830,0.7,232.25,232.22,20.8]
[1759436361929,5.00574033,232.25,232.22,20.8]
[1759436363305,4.30574033,232.25,232.21,20.8]
[1759436363633,0.7,232.24,232.22,20.8]
[1759436363821,4.30574033,232.25,232.22,20.8]
[1759436364321,4.97574033,232.25,232.22,20.8]
[1759436364513,4.97551774,232.27,232.21,20.8]
[1759436364708,0.2,232.29,232.22,0.66]
[1759436364922,0.2,232.29,232.22,4.96619614]
[1759436365226,0.2,232.29,232.26,20.8]
[1759436365528,0.67,232.28,232.26,20.8]
[1759436366821,0.67,232.27,232.26,20.8]
[1759436367529,4.97529268,232.28,232.26,20.8]
[1759436368113,4.30529268,232.28,232.26,20.8]
[1759436368314,0.67,232.28,232.26,20.8]
[1759436368614,4.30515572,232.28,232.26,20.8]
[1759436368831,4.97515572,232.28,232.26,20.8]
[1759436369235,0.67,232.28,232.26,20.8]
[1759436369530,4.97517043,232.28,232.26,20.8]
[1759436369731,0.67,232.27,232.26,20.8]
[1759436370136,4.30517043,232.28,232.26,20.8]
[1759436370311,4.97517043,232.28,232.26,20.8]
[1759436371625,0.68,232.27,232.19,0.67]
[1759436371840,0.68,232.27,232.2,30.24]
[1759436372012,15.06804282,232.28,232.23,20.8]
[1759436372213,0.68,232.26,232.23,20.8]
[1759436372833,0.68,232.25,232.23,20.8]
[1759436373539,4.98588346,232.25,232.23,20.8]
[1759436375037,4.98588346,232.25,232.18,0.67]
[1759436375038,0.68,232.24,232.18,0.67]
[1759436375241,0.68,232.24,232.21,20.8]
[1759436375437,0.68,232.23,232.21,20.8]
[1759436375748,4.9862613,232.22,232.16,0.67]
[1759436375920,4.9862613,232.22,232.17,30.24]
[1759436376119,0.68,232.21,232.17,30.24]
[1759436376818,0.68,232.2,232.17,30.24]
[1759436377148,4.98663221,232.2,232.19,20.8]
[1759436377344,4.30663221,232.2,232.19,20.8]
[1759436377643,4.98641985,232.22,232.18,20.8]
[1759436379611,10.87647521,232.27,232.19,0.67]
[1759436379817,10.87647521,232.27,232.22,20.8]
[1759436379818,4.30551967,232.26,232.22,20.8]
[1759436380346,4.30551967,232.26,232.22,21.47]
[1759436381151,4.9853343,232.27,232.22,20.8]
[1759436382530,0.68,232.26,232.22,20.8]
[1759436383337,0.68,232.25,232.22,20.8]
[1759436384154,0.68,232.24,232.16,21.47]
[1759436384463,4.3062613,232.22,232.2,20.8]
[1759436384758,0.68,232.21,232.2,20.8]
[1759436385129,4.3062613,232.22,232.2,20.8]
[1759436385356,0.2,232.29,232.2,20.8]
[1759436385557,0.68,232.24,232.2,20.8]
[1759436385852,0.68,232.23,232.2,20.8]
[1759436387051,4.3062613,232.22,232.2,20.8]
[1759436387257,4.9862613,232.22,232.2,20.8]
[1759436389673,15.07191455,232.22,232.17,30.22]
[1759436389845,0.68,232.21,232.17,30.22]
[1759436390460,0.68,232.2,232.18,20.8]
[1759436390864,4.30681769,232.19,232.18,20.8]